[Event "Austria Championship Blitz 2024"]
[Site "Innsbruck"]
[Date "2024.06.01"]
[Round "1.21"]
[White "Mira, Helene"]
[Black "Hyassat, Milana"]
[Result "1-0"]
[ECO "D38"]
[WhiteElo "2047"]
[BlackElo "1761"]
[Annotator "RC"]
[PlyCount "75"]
[EventDate "2024.06.01"]
[EventType "swiss"]
[EventCountry "AUT"]
[SourceTitle "playchess.com"]
[Source "ChessBase"]
[SourceQuality "1"]
[TimeControl "180+2"]

1. d4 {[%emt 0:00:03]} Nf6 {[%emt 0:00:00]} 2. c4 {[%emt 0:00:02]} e6 {[%emt 0:00:02]} 3. Nf3 {[%emt 0:00:02]} d5 {[%emt 0:00:02]} 4. Nc3 {[%emt 0:00:02]} Bb4 {[%emt 0:00:03]} 5. Qa4+ {[%emt 0:00:02]} Nc6 {[%emt 0:00:03]} 6. Ne5 {[%emt 0:00:01]} Bxc3+ {[%emt 0:00:04]} 7. bxc3 {[%emt 0:00:02]} Bd7 {[%emt 0:00:11]} 8. Nxd7 {[%emt 0:00:05]} Qxd7 {[%emt 0:00:03]} 9. Qa3 {[%emt 0:00:02]} dxc4 {[%emt 0:00:09]} 10. f3 {[%emt 0:00:03]} b5 {[%emt 0:00:02]} 11. e4 {[%emt 0:00:07]} a5 {[%emt 0:00:06]} 12. Qc5 {[%emt 0:00:02]} Rb8 {[%emt 0:00:13]} 13. Rb1 {[%emt 0:00:02]} Qd6 {[%emt 0:00:24]} 14. Ba3 {[%emt 0:00:22]} b4 {[%emt 0:00:29]} 15. cxb4 {[%emt 0:00:23]} axb4 {[%emt 0:00:13]} 16. Qxc4 {[%emt 0:00:36]} O-O {[%emt 0:00:43]} 17. Bb2 {[%emt 0:00:19]} e5 {[%emt 0:00:15]} 18. d5 {[%emt 0:00:33]} Na5 {[%emt 0:00:07]} 19. Qc1 {[%emt 0:00:14]} Rfc8 {[%emt 0:00:10]} 20. Qg5 {[%emt 0:00:23]} Nd7 {[%emt 0:00:08]} 21. f4 {[%emt 0:00:16]} h6 {[%emt 0:00:02]} 22. Qg3 {[%emt 0:00:02]} f6 {[%emt 0:00:07]} 23. fxe5 {[%emt 0:00:01]} Nxe5 {[%emt 0:00:02]} 24. Be2 {[%emt 0:00:01]} Nac4 {[%emt 0:00:02]} 25. O-O {[%emt 0:00:02]} Nd2 {[%emt 0:00:00]} 26. Rbd1 {[%emt 0:00:02]} Nxf1 {[%emt 0:00:01]} 27. Rxf1 {[%emt 0:00:01]} Rf8 {[%emt 0:00:02]} 28. Bg4 {[%emt 0:00:05]} Nxg4 {[%emt 0:00:02]} 29. Qxg4 {[%emt 0:00:01]} Qe7 {[%emt 0:00:01]} 30. Qf5 {[%emt 0:00:01]} b3 {[%emt 0:00:01]} 31. a3 {[%emt 0:00:01]} Rb6 {[%emt 0:00:17]} 32. Qg6 Ra6 {[%emt 0:00:00]} 33. Rf3 {[%emt 0:00:04]} c6 {[%emt 0:00:04]} 34. d6 {[%emt 0:00:08]} Qxd6 {[%emt 0:00:00]} 35. e5 {[%emt 0:00:00]} Qd1+ {[%emt 0:00:00]} 36. Rf1 {[%emt 0:00:00]} Qd8 {[%emt 0:00:00]} 37. exf6 {[%emt 0:00:00]} c5 {[%emt 0:00:00]} 38. Qxg7# {[%emt 0:00:00]} 1-0

[Event "Austria Championship Blitz 2024"]
[Site "Innsbruck"]
[Date "2024.06.01"]
[Round "1.22"]
[White "Falkensteiner, Benjamin"]
[Black "Wetscher, Wolfgang"]
[Result "0-1"]
[ECO "B12"]
[WhiteElo "1905"]
[BlackElo "1937"]
[Annotator "RC"]
[PlyCount "119"]
[EventDate "2024.06.01"]
[EventType "swiss"]
[EventCountry "AUT"]
[SourceTitle "playchess.com"]
[Source "ChessBase"]
[SourceQuality "1"]
[TimeControl "180+2"]

1. e4 {[%emt 0:03:04]} c6 2. d4 {[%emt 0:00:00]} Qc7 {[%emt 0:00:00]} 3. Nf3 {[%emt 0:00:00]} d6 {[%emt 0:00:00]} 4. Bd3 {[%emt 0:00:00]} Nd7 {[%emt 0:00:01]} 5. O-O {[%emt 0:00:00]} e5 {[%emt 0:00:01]} 6. c3 {[%emt 0:00:00]} Ngf6 {[%emt 0:00:00]} 7. Re1 {[%emt 0:00:00]} Be7 {[%emt 0:00:01]} 8. h3 {[%emt 0:00:00]} h6 {[%emt 0:00:00]} 9. Be3 {[%emt 0:00:16]} g5 10. Nh2 {[%emt 0:00:00]} Nf8 {[%emt 0:00:01]} 11. Nd2 {[%emt 0:00:00]} Ng6 {[%emt 0:00:01]} 12. Ndf1 {[%emt 0:00:00]} Nf4 {[%emt 0:00:01]} 13. Ng3 {[%emt 0:00:00]} h5 {[%emt 0:00:19]} 14. Nf5 {[%emt 0:00:00]} Bxf5 {[%emt 0:00:02]} 15. exf5 {[%emt 0:00:00]} b6 {[%emt 0:00:20]} 16. dxe5 {[%emt 0:00:00]} dxe5 {[%emt 0:00:01]} 17. Bxf4 {[%emt 0:00:00]} gxf4 {[%emt 0:00:02]} 18. f3 {[%emt 0:00:00]} O-O-O {[%emt 0:00:05]} 19. Ba6+ {[%emt 0:00:00]} Kb8 {[%emt 0:00:02]} 20. Qe2 {[%emt 0:00:00]} Nd7 {[%emt 0:00:14]} 21. Rad1 {[%emt 0:00:00]} f6 {[%emt 0:00:08]} 22. b4 {[%emt 0:00:00]} c5 {[%emt 0:00:15]} 23. a3 {[%emt 0:00:00]} Nf8 {[%emt 0:00:36]} 24. Nf1 {[%emt 0:00:00]} Nh7 {[%emt 0:00:06]} 25. Nd2 {[%emt 0:00:00]} Ng5 {[%emt 0:00:07]} 26. Ne4 {[%emt 0:00:00]} Nxe4 {[%emt 0:00:06]} 27. Qxe4 {[%emt 0:00:00]} Rhg8 {[%emt 0:00:17]} 28. Kh2 {[%emt 0:00:00]} h4 {[%emt 0:00:01]} 29. bxc5 {[%emt 0:00:24]} Bxc5 {[%emt 0:00:02]} 30. Rb1 {[%emt 0:00:04]} Rd2 {[%emt 0:00:09]} 31. Re2 {[%emt 0:00:04]} Rxe2 {[%emt 0:00:13]} 32. Qxe2 {[%emt 0:00:14]} Qc6 {[%emt 0:00:05]} 33. Rd1 {[%emt 0:00:00]} Be7 {[%emt 0:00:05]} 34. Rd3 {[%emt 0:00:00]} Rd8 {[%emt 0:00:03]} 35. Qd2 {[%emt 0:00:00]} Rxd3 {[%emt 0:00:02]} 36. Qxd3 {[%emt 0:00:00]} Kc7 {[%emt 0:00:12]} 37. c4 {[%emt 0:00:02]} Qd6 {[%emt 0:00:05]} 38. Qe4 {[%emt 0:00:02]} Qc6 {[%emt 0:00:01]} 39. Qd3 {[%emt 0:00:02]} Bc5 {[%emt 0:00:03]} 40. Bb5 {[%emt 0:00:01]} Qd6 {[%emt 0:00:02]} 41. Qxd6+ {[%emt 0:00:05]} Kxd6 {[%emt 0:00:03]} 42. Kh1 {[%emt 0:00:01]} Bxa3 {[%emt 0:00:00]} 43. Kg1 {[%emt 0:00:02]} Kc5 {[%emt 0:00:00]} 44. Kf2 {[%emt 0:00:01]} Kd4 {[%emt 0:00:00]} 45. Ke2 {[%emt 0:00:02]} Bc5 {[%emt 0:00:00]} 46. Kd2 {[%emt 0:00:03]} Bb4+ {[%emt 0:00:00]} 47. Ke2 {[%emt 0:00:01]} Kc3 {[%emt 0:00:00]} 48. Ba6 {[%emt 0:00:02]} Bc5 {[%emt 0:00:00]} 49. Bb5 {[%emt 0:00:01]} a5 {[%emt 0:00:00]} 50. Ba4 {[%emt 0:00:04]} Kb4 {[%emt 0:00:00]} 51. Bb5 {[%emt 0:00:01]} a4 {[%emt 0:00:00]} 52. Kd2 {[%emt 0:00:01]} a3 {[%emt 0:00:00]} 53. Kc2 {[%emt 0:00:01]} Bd4 {[%emt 0:00:00]} 54. Kb1 {[%emt 0:00:02]} Bb2 {[%emt 0:00:00]} 55. Kc2 {[%emt 0:00:03]} Kc5 {[%emt 0:00:00]} 56. Kb3 {[%emt 0:00:01]} Kd4 {[%emt 0:00:00]} 57. Ba6 {[%emt 0:00:06]} Ke3 {[%emt 0:00:00]} 58. c5 {[%emt 0:00:03]} bxc5 {[%emt 0:00:00]} 59. Bb7 {[%emt 0:00:03]} Kf2 {[%emt 0:00:00]} 60. Be4 {[%emt 0:00:06]} 0-1

[Event "Austria Championship Blitz 2024"]
[Site "Innsbruck"]
[Date "2024.06.01"]
[Round "1.23"]
[White "Kienboeck, Benjamin"]
[Black "Guba, Viktor"]
[Result "1-0"]
[ECO "C79"]
[WhiteElo "2187"]
[BlackElo "1891"]
[Annotator "RC"]
[PlyCount "46"]
[EventDate "2024.06.01"]
[EventType "swiss"]
[EventCountry "AUT"]
[SourceTitle "playchess.com"]
[Source "ChessBase"]
[SourceQuality "1"]
[TimeControl "180+2"]

1. e4 {[%emt 0:00:02]} e5 {[%emt 0:00:01]} 2. Nf3 {[%emt 0:00:02]} Nc6 {[%emt 0:00:02]} 3. Bb5 {[%emt 0:00:01]} a6 {[%emt 0:00:02]} 4. Ba4 {[%emt 0:00:01]} d6 {[%emt 0:00:02]} 5. Bxc6+ {[%emt 0:00:05]} bxc6 {[%emt 0:00:01]} 6. d4 {[%emt 0:00:00]} exd4 {[%emt 0:00:01]} 7. Nxd4 {[%emt 0:00:04]} c5 {[%emt 0:00:01]} 8. Nf3 {[%emt 0:00:06]} Bb7 {[%emt 0:00:07]} 9. Nc3 {[%emt 0:00:02]} Nf6 {[%emt 0:00:11]} 10. O-O {[%emt 0:00:39]} Be7 {[%emt 0:00:20]} 11. Re1 {[%emt 0:00:02]} O-O {[%emt 0:00:02]} 12. Bf4 {[%emt 0:00:07]} Nh5 {[%emt 0:00:37]} 13. Be3 {[%emt 0:01:01]} f5 {[%emt 0:00:44]} 14. Nd2 {[%emt 0:00:00]} g6 {[%emt 0:00:08]} 15. exf5 {[%emt 0:00:13]} Bg5 {[%emt 0:00:43]} 16. fxg6 {[%emt 0:00:10]} hxg6 {[%emt 0:00:01]} 17. Nde4 {[%emt 0:00:21]} Bxe3 {[%emt 0:00:10]} 18. Rxe3 {[%emt 0:00:00]} d5 {[%emt 0:00:00]} 19. Nxc5 {[%emt 0:00:05]} Bc6 {[%emt 0:00:13]} 20. Ne6 {[%emt 0:00:03]} Qf6 {[%emt 0:00:06]} 21. Nxf8 {[%emt 0:00:01]} d4 {[%emt 0:00:05]} 22. Rf3 {[%emt 0:00:14]} Bxf3 {[%emt 0:00:03]} 23. Qxf3 {[%emt 0:00:00]} dxc3 {[%emt 0:00:08]} 1-0

[Event "Austria Championship Blitz 2024"]
[Site "Innsbruck"]
[Date "2024.06.01"]
[Round "1.24"]
[White "Neubauer, Anton"]
[Black "Kummer, Helmut"]
[Result "0-1"]
[ECO "C65"]
[WhiteElo "1857"]
[BlackElo "2212"]
[Annotator "RC"]
[PlyCount "50"]
[EventDate "2024.06.01"]
[EventType "swiss"]
[EventCountry "AUT"]
[SourceTitle "playchess.com"]
[Source "ChessBase"]
[SourceQuality "1"]
[TimeControl "180+2"]

1. e4 {[%emt 0:00:01]} e5 {[%emt 0:00:01]} 2. Nf3 {[%emt 0:00:01]} Nc6 {[%emt 0:00:01]} 3. Bb5 {[%emt 0:00:01]} Nf6 {[%emt 0:00:02]} 4. d3 {[%emt 0:00:01]} Bc5 {[%emt 0:00:02]} 5. c3 {[%emt 0:00:01]} d6 {[%emt 0:00:22]} 6. h3 {[%emt 0:00:01]} O-O {[%emt 0:00:03]} 7. O-O {[%emt 0:00:02]} h6 {[%emt 0:00:03]} 8. Re1 {[%emt 0:00:02]} Bb6 {[%emt 0:00:01]} 9. a3 {[%emt 0:00:05]} Bd7 {[%emt 0:00:10]} 10. Bc4 {[%emt 0:00:16]} Ne7 {[%emt 0:00:06]} 11. Nbd2 {[%emt 0:00:02]} Ng6 {[%emt 0:00:02]} 12. Nf1 {[%emt 0:00:01]} Be6 {[%emt 0:00:11]} 13. Bb5 {[%emt 0:00:06]} c6 {[%emt 0:00:03]} 14. Ba4 {[%emt 0:00:01]} Re8 {[%emt 0:00:05]} 15. Be3 {[%emt 0:00:03]} Qc7 {[%emt 0:00:10]} 16. Rc1 {[%emt 0:00:08]} d5 {[%emt 0:00:12]} 17. Bxb6 {[%emt 0:00:31]} axb6 {[%emt 0:00:02]} 18. Qd2 {[%emt 0:00:31]} Rad8 {[%emt 0:00:03]} 19. Bc2 {[%emt 0:00:07]} dxe4 {[%emt 0:00:02]} 20. N3h2 {[%emt 0:00:07]} exd3 {[%emt 0:00:03]} 21. Bd1 {[%emt 0:00:47]} Nf4 {[%emt 0:00:26]} 22. Ng3 {[%emt 0:00:16]} c5 {[%emt 0:00:11]} 23. Nf3 {[%emt 0:00:13]} Bd5 {[%emt 0:00:21]} 24. Nf5 {[%emt 0:00:13]} Kh7 {[%emt 0:00:19]} 25. Ne3 {[%emt 0:00:03]} Ne4 {[%emt 0:00:07]} 0-1

[Event "Austria Championship Blitz 2024"]
[Site "Innsbruck"]
[Date "2024.06.01"]
[Round "2.1"]
[White "Wetscher, Wolfgang"]
[Black "Blohberger, Felix"]
[Result "0-1"]
[ECO "A00"]
[WhiteElo "1937"]
[BlackElo "2506"]
[Annotator "TA"]
[PlyCount "154"]
[EventDate "2024.06.01"]
[EventType "swiss"]
[EventCountry "AUT"]
[SourceTitle "playchess.com"]
[Source "ChessBase"]
[SourceQuality "1"]
[TimeControl "180+2"]

{[%evp 19,154,-53,-23,-29,-23,-59,-36,-69,0,0,0,0,0,-33,0,-17,0,0,0,0,0,0,0,-12,0,0,0,0,0,-77,-60,-96,-61,-94,-96,-99,-87,-107,-83,-85,-85,-204,-189,-189,-166,-189,-170,-180,-133,-178,-178,-145,0,0,0,-195,-171,-206,-162,-222,-193,-200,-189,-295,-119,-112,-93,-95,-93,-276,-265,-190,-118,-131,-120,-117,-133,-272,-274,-276,-259,-232,-73,-81,-81,-115,0,-58,-50,-223,-8,-229,-216,-188,-188,-222,-60,-31,-8,-8,-8,-8,-8,-8,-22,-56,-62,-158,0,-254,-254,-234,-215,-7336,-2566,-6283,-5561,-2920,-2599,-29967,-29969,-29965,-29966,-29965,-29971,-29972,-29970,-29975,-29976,-29980,-29981,-29981,-29982,-29982,-29982,-29982,-29983]} 1. c3 {[%emt 0:00:00]} Nf6 {[%emt 0:03:04]} 2. Qc2 d5 {[%emt 0:00:00]} 3. d3 {[%emt 0:00:01]} e5 {[%emt 0:00:00]} 4. Nd2 {[%emt 0:00:01]} Nc6 {[%emt 0:00:00]} 5. e4 {[%emt 0:00:01]} Bc5 {[%emt 0:00:00]} 6. h3 {[%emt 0:00:00] A00: Irregular Openings.} O-O {[%emt 0:00:00]} 7. Ngf3 {[%emt 0:00:01]} a5 {[%emt 0:00:00]} 8. Be2 {[%emt 0:00:01]} Re8 {[%emt 0:00:00]} 9. Nf1 {[%emt 0:00:01]} b6 {[%emt 0:00:00]} 10. a4 $146 {[%emt 0:00:05]} ({Predecessor:} 10. g4 Ba6 11. Ng3 dxe4 12. dxe4 Bxe2 13. Qxe2 Qc8 14. Bg5 Nd7 15. O-O-O Nf8 16. h4 {0-1 Titichoca Daza,D (2090)-Hristodoulou,P (2302) Titled Tuesday intern op 5th May blitz 2020 (9)}) 10... Ba6 {[%emt 0:00:00]} 11. Ng3 {[%emt 0:00:01]} h6 {[%emt 0:00:00]} 12. Nf5 {[%emt 0:00:07]} Bf8 {[%emt 0:00:00]} 13. g4 {[%emt 0:00:02]} dxe4 {[%emt 0:00:00]} (13... Ne7 $15) 14. dxe4 $11 {[%emt 0:00:00]} Bxe2 {[%emt 0:00:00]} 15. Qxe2 {[%emt 0:00:01]} Ne7 {[%emt 0:00:00]} 16. N3h4 {[%emt 0:00:08]} Nh7 {[%emt 0:00:00]} 17. Nxe7+ {[%emt 0:00:08]} Bxe7 {[%emt 0:00:00]} 18. Nf5 {[%emt 0:00:03]} Bg5 {[%emt 0:00:00]} 19. h4 {[%emt 0:00:20]} Bxc1 {[%emt 0:00:00]} 20. Rxc1 {[%emt 0:00:01]} Qf6 {[%emt 0:00:00]} 21. Rd1 {[%emt 0:00:18]} Rad8 {[%emt 0:00:00]} 22. Rxd8 {[%emt 0:00:05]} Rxd8 {[%emt 0:00:00]} 23. Rh3 {[%emt 0:00:22]} Nf8 {[%emt 0:00:00]} 24. Rd3 {[%emt 0:00:23]} (24. g5 $1 $11 Qe6 (24... hxg5 25. hxg5 Qxg5 26. Nh6+ gxh6 27. Rg3 $16) 25. Rd3 Rxd3 26. Qxd3) 24... Ne6 $17 {[%emt 0:00:00]} 25. Rxd8+ {[%emt 0:00:01]} Qxd8 {[%emt 0:00:00]} 26. Qd2 {[%emt 0:00:36]} Qxd2+ {[%emt 0:00:04]} 27. Kxd2 {[%emt 0:00:01]} Nc5 $1 {[%emt 0:00:16]} 28. f3 {[%emt 0:00:18]} Nxa4 {[%emt 0:00:02]} 29. b3 {[%emt 0:00:19]} Nc5 {[%emt 0:00:34]} 30. Kc2 (30. b4 $17 {was forced.} Ne6 31. bxa5 bxa5 32. Ne3) 30... Kf8 $19 {[%emt 0:00:00]} 31. Ne3 {[%emt 0:00:09]} Ke7 {[%emt 0:00:00]} 32. Nd5+ {[%emt 0:00:01]} Kd6 {[%emt 0:00:00]} 33. Ne3 {[%emt 0:00:00]} Ke6 {[%emt 0:00:00]} (33... Kd7 $19 34. Nf5 Ne6) 34. Nf5 {[%emt 0:00:02]} Kf6 {[%emt 0:00:00]} 35. Ne3 {[%emt 0:00:02]} Ke7 {[%emt 0:00:00]} (35... Na6 $17 {Strongly threatening ...g6.} 36. Kb2 Ke6) 36. Nf5+ $11 {[%emt 0:00:02]} Kf8 $2 {[%emt 0:00:00]} (36... Kf6 $11 37. Ne3 Ke7) 37. Ne3 $1 $19 {[%emt 0:00:01]} f6 {[%emt 0:00:00]} 38. Nd5 {[%emt 0:00:03]} Ne6 {[%emt 0:00:00]} 39. Kb2 {[%emt 0:00:10]} (39. b4 $142) 39... Ke8 {[%emt 0:00:00]} 40. Ka3 {[%emt 0:00:01]} Kd7 {[%emt 0:00:01]} 41. Ka4 {[%emt 0:00:01]} (41. Ne3 $142) 41... Kc6 {[%emt 0:00:05]} (41... Nf4 $19 {is more deadly. And now ...Nxd5 would win.} 42. Ne3 Ne2) 42. Ne7+ {[%emt 0:00:04]} Kd6 {[%emt 0:00:02]} 43. Nf5+ {[%emt 0:00:05]} Kc5 {[%emt 0:00:02]} 44. Ka3 $2 {[%emt 0:00:05]} (44. Ne7 $17 {was called for.}) 44... b5 $1 $19 {[%emt 0:00:02]} 45. Kb2 {[%emt 0:00:04]} Kb6 {[%emt 0:00:02]} (45... b4 $19 46. Kc2 Kb5) 46. Ka3 $17 {[%emt 0:00:02]} c6 {[%emt 0:00:01]} 47. b4 {[%emt 0:00:04]} a4 {[%emt 0:00:02]} 48. Kb2 {[%emt 0:00:05]} (48. h5 $17) 48... Kc7 $1 $19 {[%emt 0:00:01]} 49. Ka3 {[%emt 0:00:02]} Kd7 {[%emt 0:00:02]} 50. Kb2 {[%emt 0:00:02]} c5 $2 {[%emt 0:00:08]} (50... Ke8 $19 {and Black stays clearly on top. Hoping for ...g6.} 51. h5 Kf8) 51. Ka3 {[%emt 0:00:01]} Kc6 $1 {[%emt 0:00:02]} 52. Ne7+ {[%emt 0:00:05]} Kd7 {[%emt 0:00:06]} ({Black should play} 52... Kb7 $17 53. bxc5 Nxc5) 53. Nf5 $15 {[%emt 0:00:01]} c4 {[%emt 0:00:07]} 54. Kb2 $2 {[%emt 0:00:01]} (54. h5 $15) 54... Kc6 $2 {[%emt 0:00:02]} (54... g6 $1 $19 {[%cal Rg6f5]} 55. Ng3 Nf4) 55. Ne7+ $2 {[%emt 0:00:02]} (55. Ka2 $1 $11) 55... Kd6 $19 {[%emt 0:00:01]} 56. Nf5+ {[%emt 0:00:01]} Kd7 $1 {[%emt 0:00:01]} 57. Ka3 {[%emt 0:00:01]} Kc7 $2 {[%emt 0:00:02]} (57... g6 $1 $19 {[%cal Rg6f5]} 58. Nxh6 Nf4) 58. Kb2 {[%emt 0:00:01]} Kb6 {[%emt 0:00:03]} 59. Ka3 {[%emt 0:00:01]} Ka6 {[%emt 0:00:01]} 60. Kb2 {[%emt 0:00:01]} Ka7 {[%emt 0:00:01]} 61. Ka3 {[%emt 0:00:00]} Kb7 {[%emt 0:00:00]} 62. Kb2 Kc7 $1 63. Ka3 {[%emt 0:00:01] [#]} (63. Ka2 $15) 63... Kd7 {[%emt 0:00:02]} (63... Kd8 $1 $17 64. h5 Kd7) 64. Kb2 $1 $19 {[%emt 0:00:01] [#]} g6 $1 {[%emt 0:00:04]} 65. Nxh6 {[%emt 0:00:03]} Ke8 {[%emt 0:00:01]} 66. Ng8 $2 {[%emt 0:00:09]} (66. h5 gxh5 67. gxh5) 66... Kf7 $19 {[%emt 0:00:02]} 67. Nh6+ {[%emt 0:00:01]} Kg7 {[%emt 0:00:01]} 68. g5 {[%emt 0:00:01]} fxg5 {[%emt 0:00:01]} 69. hxg5 {[%emt 0:00:01]} Nxg5 {[%emt 0:00:01]} 70. Ng4 {[%emt 0:00:01]} Nxf3 {[%emt 0:00:02]} 71. Ne3 {[%emt 0:00:04]} Nd2 {[%emt 0:00:06]} 72. Kc2 {[%emt 0:00:03]} Nxe4 {[%emt 0:00:02]} 73. Ng4 {[%emt 0:00:04]} a3 {[%emt 0:00:02]} 74. Nxe5 {[%emt 0:00:02]} a2 {[%emt 0:00:00]} 75. Kb2 {[%emt 0:00:01]} Nxc3 {[%emt 0:00:01]} 76. Nc6 {[%emt 0:00:07]} g5 {[%emt 0:00:02]} 77. Nd4 {[%emt 0:00:01]} Kf6 {[%emt 0:00:05]} 0-1

[Event "Austria Championship Blitz 2024"]
[Site "Innsbruck"]
[Date "2024.06.01"]
[Round "2.2"]
[White "Shengelia, David"]
[Black "Mira, Helene"]
[Result "1-0"]
[ECO "E12"]
[WhiteElo "2465"]
[BlackElo "2047"]
[Annotator "TA"]
[PlyCount "57"]
[EventDate "2024.06.01"]
[EventType "swiss"]
[EventCountry "AUT"]
[SourceTitle "playchess.com"]
[Source "ChessBase"]
[SourceQuality "1"]
[TimeControl "180+2"]

{[%evp 18,57,5,16,29,45,31,31,100,103,121,36,52,45,66,59,70,46,61,46,50,43,56,55,114,110,108,106,124,123,131,128,134,135,143,164,163,137,227,239,247,71]} 1. d4 {[%emt 0:00:03]} d5 {[%emt 0:00:01]} 2. Nf3 {[%emt 0:00:01]} e6 {[%emt 0:00:01]} 3. c4 {[%emt 0:00:02]} Nf6 {[%emt 0:00:02]} 4. e3 {[%emt 0:00:02]} Be7 {[%emt 0:00:01]} 5. Nc3 {[%emt 0:00:02]} O-O {[%emt 0:00:03]} 6. a3 {[%emt 0:00:08]} b6 {[%emt 0:00:03]} 7. cxd5 {[%emt 0:00:02]} exd5 {[%emt 0:00:06]} 8. Bd3 {[%emt 0:00:02]} Ba6 {[%emt 0:00:05]} 9. O-O {[%emt 0:00:11]} Bxd3 {[%emt 0:00:02]} 10. Qxd3 {[%emt 0:00:02]} c5 {[%emt 0:00:01]} 11. dxc5 {[%emt 0:00:10]} bxc5 {[%emt 0:00:02]} 12. Rd1 {[%emt 0:00:07][%cal Rc3d5]} c4 {[%emt 0:00:15]} ({Black should play} 12... Qb6 $14) 13. Qc2 $16 {[%emt 0:00:25]} Qa5 {[%emt 0:00:24] [#]} 14. Bd2 {[%emt 0:00:06]} (14. g4 $1 $16) 14... Qa6 {[%emt 0:00:06]} 15. Be1 {[%emt 0:00:07][%cal Bd2e1,Be1c3,Bc3d4][%mdl 32]} Rd8 {[%emt 0:00:03]} 16. e4 {[%emt 0:00:05]} dxe4 {[%emt 0:00:17]} 17. Rxd8+ {[%emt 0:00:01]} Bxd8 {[%emt 0:00:01]} 18. Nxe4 {[%emt 0:00:02]} Nbd7 {[%emt 0:00:53]} 19. Bc3 {[%emt 0:00:07]} Qc6 {[%emt 0:00:24]} 20. Re1 {[%emt 0:00:10][%cal Ba1e1,Be1e4,Be4c4,Bc4c6][%mdl 32]} Nxe4 {[%emt 0:00:08]} (20... g6 $14) 21. Qxe4 {[%emt 0:00:03]} Qxe4 {[%emt 0:00:18]} 22. Rxe4 {[%emt 0:00:01]} Nf6 {[%emt 0:00:18] Prevents Re8+.} 23. Rxc4 {[%emt 0:00:04] White is more active.} Nd5 {[%emt 0:00:08]} 24. Bd4 {[%emt 0:00:15]} Bb6 {[%emt 0:00:03]} 25. Kf1 {[%emt 0:00:16] White is clearly better.} f6 {[%emt 0:00:03]} 26. Bxb6 {[%emt 0:00:05]} axb6 {[%emt 0:00:02]} 27. Rc6 {[%emt 0:00:13]} Kf7 {[%emt 0:00:06]} (27... Rd8 $16 {is a better defense.} 28. g3 Kf7) 28. Rd6 $18 {[%emt 0:01:06]} Nf4 {[%emt 0:00:02]} 29. Ke1 $2 {[%emt 0:00:02] Weighted Error Value: White=0.07 (flawless) /Black=0.22 (precise) .  Missed win:     	White=1     	---        Mistake:       	White=1     	Black=3      OK:         	White=12    	Black=3      Best:        	White=1     	---} (29. Rxb6 Rc8 30. Rb7+ Kf8 $16) (29. g3 $18 {has better winning chances.} Ne6 30. Rxb6) 1-0

[Event "Austria Championship Blitz 2024"]
[Site "Innsbruck"]
[Date "2024.06.01"]
[Round "2.3"]
[White "Schwabeneder, Florian"]
[Black "Kienboeck, Benjamin"]
[Result "1-0"]
[ECO "B18"]
[WhiteElo "2405"]
[BlackElo "2187"]
[Annotator "RC"]
[PlyCount "51"]
[EventDate "2024.06.01"]
[EventType "swiss"]
[EventCountry "AUT"]
[SourceTitle "playchess.com"]
[Source "ChessBase"]
[SourceQuality "1"]
[TimeControl "180+2"]

1. e4 {[%emt 0:00:01]} c6 {[%emt 0:00:01]} 2. d4 {[%emt 0:00:02]} d5 {[%emt 0:00:01]} 3. Nc3 {[%emt 0:00:02]} dxe4 {[%emt 0:00:01]} 4. Nxe4 {[%emt 0:00:01]} Bf5 {[%emt 0:00:01]} 5. Ng3 {[%emt 0:00:02]} Bg6 {[%emt 0:00:01]} 6. N1e2 {[%emt 0:00:04]} Nf6 {[%emt 0:00:24]} 7. c3 {[%emt 0:00:02]} Nbd7 {[%emt 0:00:10]} 8. h4 {[%emt 0:00:13]} h6 {[%emt 0:00:38]} 9. Nf4 {[%emt 0:00:02]} Bh7 {[%emt 0:00:01]} 10. Bd3 {[%emt 0:00:01]} e5 {[%emt 0:00:18]} 11. Qe2 {[%emt 0:00:30]} Be7 {[%emt 0:00:13]} 12. dxe5 {[%emt 0:00:11]} Nxe5 {[%emt 0:00:13]} 13. Bxh7 {[%emt 0:00:09]} Nxh7 {[%emt 0:00:14]} 14. Qxe5 {[%emt 0:00:04]} O-O {[%emt 0:00:01]} 15. O-O {[%emt 0:00:33]} Bxh4 {[%emt 0:00:01]} 16. Nfh5 {[%emt 0:00:07]} Bxg3 17. Nxg3 {[%emt 0:00:04]} Nf6 {[%emt 0:00:19]} 18. Be3 {[%emt 0:00:09]} Re8 {[%emt 0:00:01]} 19. Qf5 {[%emt 0:00:05]} Qc7 {[%emt 0:00:08]} 20. Bd4 {[%emt 0:00:03]} Re6 {[%emt 0:00:07]} 21. Rae1 {[%emt 0:00:08]} Rae8 {[%emt 0:00:01]} 22. Rxe6 {[%emt 0:00:01]} Rxe6 {[%emt 0:00:00]} 23. Rd1 {[%emt 0:00:08]} Qe7 {[%emt 0:00:02]} 24. Bxf6 {[%emt 0:00:14]} Rxf6 {[%emt 0:00:02]} 25. Qd7 {[%emt 0:00:09]} Qc5 {[%emt 0:00:14]} 26. Ne4 {[%emt 0:00:04]} 1-0

[Event "Austria Championship Blitz 2024"]
[Site "Innsbruck"]
[Date "2024.06.01"]
[Round "2.4"]
[White "Kummer, Helmut"]
[Black "Wohlfahrt, Herbert"]
[Result "0-1"]
[ECO "E15"]
[WhiteElo "2212"]
[BlackElo "2328"]
[Annotator "RC"]
[PlyCount "61"]
[EventDate "2024.06.01"]
[EventType "swiss"]
[EventCountry "AUT"]
[SourceTitle "playchess.com"]
[Source "ChessBase"]
[SourceQuality "1"]
[TimeControl "180+2"]

1. d4 {[%emt 0:00:01]} Nf6 {[%emt 0:00:00]} 2. c4 {[%emt 0:03:05]} e6 3. Nf3 {[%emt 0:00:00]} b6 {[%emt 0:00:01]} 4. g3 {[%emt 0:00:00]} Ba6 {[%emt 0:00:01]} 5. b3 {[%emt 0:00:00]} Bb4+ {[%emt 0:00:02]} 6. Bd2 {[%emt 0:00:00]} Be7 {[%emt 0:00:02]} 7. Bg2 {[%emt 0:00:00]} c6 {[%emt 0:00:02]} 8. O-O {[%emt 0:00:00]} d5 {[%emt 0:00:01]} 9. Qc2 {[%emt 0:00:00]} O-O {[%emt 0:00:05]} 10. Bg5 {[%emt 0:00:00]} Nbd7 {[%emt 0:00:04]} 11. Nbd2 {[%emt 0:00:00]} Rc8 {[%emt 0:00:13]} 12. Rfd1 {[%emt 0:00:00]} c5 {[%emt 0:00:22]} 13. dxc5 {[%emt 0:00:00]} Nxc5 {[%emt 0:00:01]} 14. Rac1 {[%emt 0:00:00]} h6 {[%emt 0:00:15]} 15. Bxf6 {[%emt 0:00:00]} Bxf6 {[%emt 0:00:01]} 16. e4 {[%emt 0:00:00]} dxc4 {[%emt 0:00:26]} 17. Nxc4 {[%emt 0:00:00]} Qc7 {[%emt 0:00:01]} 18. e5 {[%emt 0:00:00]} Be7 {[%emt 0:00:01]} 19. Nd6 {[%emt 0:00:00]} Bxd6 {[%emt 0:00:08]} 20. exd6 {[%emt 0:00:00]} Qb8 {[%emt 0:00:04]} 21. Qd2 {[%emt 0:00:16]} Rcd8 {[%emt 0:00:17]} 22. Ne5 {[%emt 0:00:03]} Bb7 {[%emt 0:00:02]} 23. b4 {[%emt 0:00:09]} Bxg2 {[%emt 0:00:20]} 24. bxc5 {[%emt 0:00:02]} Bd5 {[%emt 0:00:02]} 25. Rb1 {[%emt 0:00:07]} Qa8 {[%emt 0:00:10]} 26. cxb6 {[%emt 0:00:03]} Rxd6 {[%emt 0:00:06]} 27. b7 {[%emt 0:00:02]} Qb8 {[%emt 0:00:11]} 28. Qb4 {[%emt 0:00:01]} Rfd8 {[%emt 0:00:16]} 29. Qf4 {[%emt 0:00:07]} Rf8 {[%emt 0:00:04]} 30. Qb4 {[%emt 0:00:02]} f6 {[%emt 0:00:11]} 31. Nc4 {[%emt 0:00:06]} 0-1